fUSD/lending_fUSD_20260430
["ID","MTS","AMOUNT","RATE_DAILY","PERIOD"]
[421379795,1777528233000,-7283.02287851,0.00027945,2]
[421379794,1777528233000,-137908.89887822,0.00027945,2]
[421379792,1777528233000,-406.27360261,0.00027944,2]
[421379789,1777528233000,-350.0,0.00027944,2]
[421379783,1777528233000,-500.0,0.00027944,2]
[421379786,1777528233000,-500.0,0.00027944,2]
[421379784,1777528233000,-500.0,0.00027944,2]
[421379785,1777528233000,-500.0,0.00027944,2]
[421379791,1777528233000,-500.0,0.00027944,2]
[421379788,1777528233000,-500.0,0.00027944,2]
[421379796,1777528233000,-1711.23017621,0.00027945,2]
[421379787,1777528233000,-500.0,0.00027944,2]
[421379797,1777528233000,-700.37599953,0.00027945,2]
[421379793,1777528233000,-318.44,0.00027944,14]
[421379808,1777528233000,-312.86886911,0.00027945,2]
[421379806,1777528233000,-8073.70803725,0.00027945,2]
[421379805,1777528233000,-1512.86999631,0.00027945,2]
[421379804,1777528233000,-1049.24108504,0.00027945,2]
[421379807,1777528233000,-1262.346,0.00027945,2]
[421379803,1777528233000,-1149.99016759,0.00027945,2]
[421379801,1777528233000,-2649.0,0.00027945,2]
[421379802,1777528233000,-413.48160874,0.00027945,2]
[421379799,1777528233000,-6231.2682464,0.00027945,2]
[421379798,1777528233000,-303.8818997,0.00027945,2]
[421379800,1777528233000,-400.0,0.00027945,2]
[421379812,1777528238000,-52500.3487441,0.00027945,2]
[421379809,1777528238000,-122964.2926285,0.00027945,2]
[421379810,1777528238000,-1450.80311392,0.00027945,2]
[421379811,1777528238000,-4636.4,0.00027945,2]
[421379813,1777528238000,-273.05334531,0.00027945,2]
[421379816,1777528238000,-3526.75,0.00027945,2]
[421379815,1777528238000,-66800.04016857,0.00027945,2]
[421379818,1777528238000,-380.52932165,0.00027945,2]
[421379820,1777528238000,-3957.0,0.00027945,2]
[421379819,1777528238000,-38705.1093591,0.00027945,2]
[421379814,1777528238000,-37876.5,0.00027945,2]
[421379817,1777528238000,-19427.47287327,0.00027945,2]
[421380067,1777528240000,-3575.413935,0.00027945,2]
[421380055,1777528240000,-1979.65645078,0.00027945,2]
[421380069,1777528240000,-440.99868119,0.00027945,2]
[421380064,1777528240000,-3114.16252253,0.00027945,2]
[421380057,1777528240000,-3217.63065592,0.00027945,2]
[421380031,1777528240000,-272.24010028,0.00027945,2]
[421380036,1777528240000,-2207.9953582,0.00027945,2]
[421380034,1777528240000,-3046.82868942,0.00027945,2]
[421380029,1777528240000,-846.22880393,0.00027945,2]
[421380040,1777528240000,-649.29216344,0.00027945,2]
[421380122,1777528240000,-75708.989905,0.00028033,2]
[421380133,1777528240000,-221.49,0.0002865,2]
[421380126,1777528240000,-200.0,0.00028043,2]
[421380129,1777528240000,-318.44,0.00028218,14]
[421380131,1777528240000,-318.44,0.00028492,14]
[421380120,1777528240000,-29972.24674853,0.00027945,2]
[421380117,1777528240000,-66848.77889375,0.00027945,2]
[421380144,1777528240000,-221.03,0.00028713,30]
[421380140,1777528240000,-221.03,0.00028682,7]
[421380135,1777528240000,-221.03,0.00028652,2]
[421380142,1777528240000,-221.49,0.00028711,30]
[421380137,1777528240000,-221.49,0.0002868,7]
[421380124,1777528240000,-12120.7759738,0.00028033,2]
[421380177,1777528241000,-221.49,0.00028803,30]
[421380173,1777528241000,-221.49,0.00028772,7]
[421380170,1777528241000,-389.52,0.00028767,5]
[421380187,1777528241000,-221.03,0.00028866,7]
[421380183,1777528241000,-221.03,0.00028835,2]
[421380179,1777528241000,-221.03,0.00028804,30]
[421380168,1777528241000,-318.44,0.00028765,14]
[421380166,1777528241000,-221.03,0.00028743,2]
[421380164,1777528241000,-221.49,0.00028742,2]
[421380181,1777528241000,-221.49,0.00028834,2]
[421380185,1777528241000,-221.49,0.00028864,7]
[421380206,1777528241000,-2195.59289405,0.00028972,2]
[421380192,1777528241000,-221.03,0.00028896,30]
[421380210,1777528241000,-458.87313864,0.00028972,2]
[421380208,1777528241000,-2565.98624479,0.00028972,2]
[421380175,1777528241000,-221.03,0.00028774,7]
[421380196,1777528241000,-221.03,0.00028927,2]
[421380200,1777528241000,-221.03,0.00028957,7]
[421380212,1777528241000,-18964.6820649,0.00028972,2]
[421380204,1777528241000,-456.0,0.00028972,5]
[421380198,1777528241000,-221.49,0.00028956,7]
[421380194,1777528241000,-221.49,0.00028926,2]
[421380190,1777528241000,-221.49,0.00028895,30]
[421380202,1777528241000,-2903.04176179,0.00028971,2]
[421380499,1777528243000,-2619.9222051,0.00028972,2]
[421380482,1777528243000,-628.43809262,0.00028972,2]
[421380479,1777528243000,-972.86854354,0.00028972,2]
[421380668,1777528246000,-370.45,0.00022562,2]
[421380669,1777528246000,-239.93,0.00022562,2]
[421380671,1777528246000,-1280.3099978,0.00027933,2]
[421380670,1777528246000,-3503.16066726,0.00027933,2]
[421380672,1777528246000,-389.03729223,0.00027933,2]
[421380676,1777528246000,-1877.41599822,0.00028972,2]
[421380677,1777528246000,-540.74393397,0.00028972,2]
[421380675,1777528246000,-1207.60268709,0.00028972,2]
[421380673,1777528246000,-20389.09632176,0.00028972,2]
[421380674,1777528246000,-5346.92997571,0.00028972,2]
[421380696,1777528262000,5000.0,0.00020741,120]
[421380697,1777528315000,501.88566024,0.00027944,120]
[421380698,1777528393000,500.0,0.0003013,120]
[421380699,1777528481000,396.57771861,0.00027944,120]
[421380700,1777528779000,1000.0,0.00026623,120]
[421380701,1777528802000,338.96,0.0002643,120]
[421380702,1777528803000,338.96,0.00029734,120]
[421380703,1777528983000,-278.43161314,0.0001,2]
[421380704,1777528983000,-221.57152307,0.0001,2]
[421380706,1777529146000,500.0,0.00029452,120]
[421380735,1777529432000,-500.0,0.00020462,2]
[421380744,1777529432000,-151.0,0.00020462,2]
[421380734,1777529432000,-500.0,0.00020462,2]
[421380736,1777529432000,-151.0,0.00020462,2]
[421380737,1777529432000,-500.0,0.00020462,2]
[421380741,1777529432000,-500.0,0.00020462,2]
[421380743,1777529432000,-500.0,0.00020462,2]
[421380738,1777529432000,-151.0,0.00020462,2]
[421380739,1777529432000,-500.0,0.00020462,2]
[421380742,1777529432000,-151.0,0.00020462,2]
[421380748,1777529432000,-151.0,0.00020462,2]
[421380750,1777529432000,-151.0,0.00020462,2]
[421380747,1777529432000,-151.0,0.00020462,2]
[421380751,1777529432000,-151.0,0.00020462,2]
[421380749,1777529432000,-151.0,0.00020462,2]
[421380756,1777529432000,-151.0,0.00020462,2]
[421380755,1777529432000,-151.0,0.00020462,2]
[421380746,1777529432000,-151.0,0.00020462,2]
[421380753,1777529432000,-151.0,0.00020462,2]
[421380754,1777529432000,-151.0,0.00020462,2]
[421380740,1777529432000,-151.0,0.00020462,2]
[421380745,1777529432000,-533.43200772,0.00020462,2]
[421380730,1777529432000,-150.0,0.00020461,2]
[421380718,1777529432000,-300.0,0.00016921,2]
[421380731,1777529432000,-201.72141411,0.00020462,2]
[421380769,1777529432000,-500.0,0.00020462,2]
[421380709,1777529432000,-79.87359802,0.0001,2]
[421380711,1777529432000,-610.97250991,0.00011,2]
[421380710,1777529432000,-301.44512109,0.00011,2]
[421380712,1777529432000,-300.0,0.00012854,2]
[421380714,1777529432000,-250.80628055,0.0001368,2]
[421380717,1777529432000,-300.0,0.00016921,2]
[421380715,1777529432000,-279.0,0.00014141,2]
[421380713,1777529432000,-1200.0,0.00012855,2]
[421380721,1777529432000,-1139.97,0.00016922,5]
[421380729,1777529432000,-923.10212756,0.00020188,2]
[421380716,1777529432000,-301.44512109,0.00014427,2]
[421380720,1777529432000,-1877.63,0.00016922,2]
[421380723,1777529432000,-5917.61,0.00016922,2]
[421380722,1777529432000,-4999.99,0.00016922,2]
[421380724,1777529432000,-768.03,0.0001697,2]
[421380725,1777529432000,-754.89,0.00017728,2]
[421380726,1777529432000,-300.0,0.00018483,2]
[421380727,1777529432000,-6137.03,0.00018856,2]
[421380733,1777529432000,-500.0,0.00020462,2]
[421380732,1777529432000,-500.0,0.00020462,2]
[421380728,1777529432000,-182.0,0.0002,2]
[421380719,1777529432000,-1138.92,0.00016922,2]
[421380757,1777529432000,-151.0,0.00020462,2]
[421380752,1777529432000,-151.0,0.00020462,2]
[421380761,1777529432000,-500.0,0.00020462,2]
[421380795,1777529432000,-500.0,0.00020736,2]
[421380804,1777529432000,-168.37,0.00022562,2]
[421380796,1777529432000,-234.96686105,0.00020756,2]
[421380799,1777529432000,-502.0,0.00021288,2]
[421380800,1777529432000,-178.37,0.0002156,2]
[421380798,1777529432000,-182.0,0.00021,2]
[421380797,1777529432000,-150.0,0.00020951,2]
[421380801,1777529432000,-272.9034792,0.00021918,10]
[421380807,1777529432000,-182.0,0.00023,2]
[421380806,1777529432000,-5290.55,0.00022562,2]
[421380805,1777529432000,-662.09,0.00022562,2]
[421380808,1777529432000,-182.0,0.00024,2]
[421380812,1777529432000,-166.66,0.00024641,30]
[421380809,1777529432000,-2654.0,0.00024,3]
[421380811,1777529432000,-2561.98,0.00024453,2]
[421380816,1777529432000,-200.0,0.00025275,2]
[421380814,1777529432000,-184.49231794,0.00025,2]
[421380813,1777529432000,-150.0,0.00024658,2]
[421380815,1777529432000,-166.66,0.0002516,30]
[421380817,1777529432000,-166.66,0.0002551,2]
[421380819,1777529432000,-150.0,0.00025964,7]
[421380818,1777529432000,-166.66,0.00025679,30]
[421380810,1777529432000,-5528.0,0.000244,5]
[421380793,1777529432000,-162.3498137,0.00020474,2]
[421380771,1777529432000,-151.0,0.00020462,2]
[421380803,1777529432000,-157.80678897,0.00022407,2]
[421380765,1777529432000,-500.0,0.00020462,2]
[421380763,1777529432000,-151.0,0.00020462,2]
[421380775,1777529432000,-151.0,0.00020462,2]
[421380759,1777529432000,-151.0,0.00020462,2]
[421380773,1777529432000,-500.0,0.00020462,2]
[421380777,1777529432000,-500.0,0.00020462,2]
[421380802,1777529432000,-182.0,0.00022,2]
[421380820,1777529432000,-150.0,0.00025964,4]
[421380778,1777529432000,-151.0,0.00020462,2]
[421380780,1777529432000,-500.0,0.00020462,2]
[421380792,1777529432000,-500.0,0.00020462,2]
[421380767,1777529432000,-151.0,0.00020462,2]
[421380781,1777529432000,-151.0,0.00020462,2]
[421380782,1777529432000,-500.0,0.00020462,2]
[421380791,1777529432000,-151.0,0.00020462,2]
[421380789,1777529432000,-151.0,0.00020462,2]
[421380788,1777529432000,-151.0,0.00020462,2]
[421380787,1777529432000,-151.0,0.00020462,2]
[421380794,1777529432000,-184.62042551,0.00020548,10]
[421380786,1777529432000,-528.47338978,0.00020462,2]
[421380785,1777529432000,-151.0,0.00020462,2]
[421380783,1777529432000,-151.0,0.00020462,2]
[421380784,1777529432000,-500.0,0.00020462,2]
[421380790,1777529432000,-151.0,0.00020462,2]
[421380846,1777529433000,-5242.78,0.00027397,10]
[421380849,1777529433000,-4602.71963285,0.00027672,2]
[421380850,1777529433000,-2540.36592995,0.00027672,2]
[421380853,1777529433000,-174.61919141,0.00027672,2]
[421380852,1777529433000,-183.1048833,0.00027672,2]
[421380854,1777529433000,-221.8815933,0.00027672,2]
[421380855,1777529433000,-151.0,0.00027727,2]
[421380858,1777529433000,-151.0,0.00027892,2]
[421380859,1777529433000,-151.0,0.00027947,2]
[421380857,1777529433000,-151.0,0.00027837,2]
[421380865,1777529433000,-181.08010149,0.0002822,2]
[421380856,1777529433000,-151.0,0.00027782,2]
[421380860,1777529433000,-151.0,0.00028002,2]
[421380862,1777529433000,-151.0,0.00028057,2]
[421380864,1777529433000,-151.0,0.00028167,2]
[421380863,1777529433000,-151.0,0.00028112,2]
[421380867,1777529433000,-5914.6866582,0.0002831,2]
[421380870,1777529433000,-5176.5572899,0.00028342,2]
[421380868,1777529433000,-5914.6866583,0.0002831,2]
[421380861,1777529433000,-166.66,0.00028036,2]
[421380866,1777529433000,-151.0,0.00028222,2]
[421380843,1777529433000,-152.0,0.00027273,7]
[421380851,1777529433000,-151.0,0.00027672,2]
[421380844,1777529433000,-1500.0,0.00027397,2]
[421380832,1777529433000,-208.91,0.00026642,2]
[421380841,1777529433000,-166.66,0.00027235,30]
[421380869,1777529433000,-1957.502146,0.0002831,2]
[421380821,1777529433000,-150.0,0.00025964,4]
[421380824,1777529433000,-150.0,0.00025964,4]
[421380825,1777529433000,-150.0,0.00025964,4]
[421380823,1777529433000,-150.0,0.00025964,4]
[421380826,1777529433000,-150.0,0.00025964,4]
[421380827,1777529433000,-166.66,0.00026197,30]
[421380829,1777529433000,-500.0,0.00026392,2]
[421380828,1777529433000,-166.66,0.00026352,2]
[421380830,1777529433000,-1000.0,0.00026416,2]
[421380845,1777529433000,-6291.34,0.00027397,10]
[421380834,1777529433000,-150.0,0.00026668,2]
[421380833,1777529433000,-5000.0,0.00026646,2]
[421380835,1777529433000,-200.0,0.00026668,2]
[421380836,1777529433000,-2000.0,0.00026714,2]
[421380837,1777529433000,-166.66,0.00026716,30]
[421380839,1777529433000,-506.0,0.00027137,2]
[421380838,1777529433000,-506.0,0.00027137,2]
[421380842,1777529433000,-152.0,0.00027246,7]
[421380840,1777529433000,-166.66,0.00027194,2]
[421380848,1777529433000,-1428.38747117,0.00027672,2]
[421380847,1777529433000,-4368.98,0.00027397,10]
[421380831,1777529433000,-320.17054228,0.00026449,21]
[421380822,1777529433000,-150.0,0.00025964,4]
[421380871,1777529433000,-800.0,0.000285,10]
[421380872,1777529433000,-1700.0,0.000286,10]
[421380902,1777529433000,-180.17127589,0.00028849,7]
[421380904,1777529433000,-296.64,0.00028855,7]
[421380907,1777529433000,-500.0,0.00028871,7]
[421380906,1777529433000,-156.244,0.00028871,2]
[421380908,1777529433000,-500.0,0.00028871,7]
[421380905,1777529433000,-215.4625703,0.0002887,2]
[421380903,1777529433000,-245.15,0.00028855,7]
[421380909,1777529433000,-421.75074173,0.00028871,7]
[421380911,1777529433000,-610.0,0.00028872,5]
[421380910,1777529433000,-501.0,0.00028872,5]
[421380912,1777529433000,-3416.64435249,0.00028872,4]
[421380914,1777529433000,-151.0,0.00028872,7]
[421380917,1777529433000,-151.0,0.00028872,7]
[421380913,1777529433000,-151.0,0.00028872,7]
[421380918,1777529433000,-151.0,0.00028872,7]
[421380919,1777529433000,-151.0,0.00028872,7]
[421380915,1777529433000,-151.0,0.00028872,7]
[421380916,1777529433000,-151.0,0.00028872,7]
[421380920,1777529433000,-151.0,0.00028872,7]
[421380921,1777529433000,-151.0,0.00028872,7]
[421380922,1777529433000,-151.0,0.00028872,7]
[421380923,1777529433000,-344.218831,0.00028872,7]
[421380873,1777529433000,-296.64,0.00028635,2]
[421380901,1777529433000,-150.0,0.00028849,7]
[421380899,1777529433000,-245.15,0.00028824,2]
[421380900,1777529433000,-150.0,0.00028849,7]
[421380896,1777529433000,-3500.0,0.000288,10]
[421380874,1777529433000,-245.15,0.00028636,2]
[421380875,1777529433000,-296.64,0.00028666,7]
[421380879,1777529433000,-245.15,0.00028698,30]
[421380881,1777529433000,-296.64,0.00028729,2]
[421380880,1777529433000,-2600.0,0.000287,10]
[421380876,1777529433000,-245.15,0.00028667,7]
[421380877,1777529433000,-641.79,0.00028685,2]
[421380878,1777529433000,-296.64,0.00028697,30]
[421380883,1777529433000,-296.64,0.0002876,7]
[421380898,1777529433000,-296.64,0.00028823,2]
[421380884,1777529433000,-245.15,0.00028761,7]
[421380886,1777529433000,-1444.86070118,0.00028772,2]
[421380882,1777529433000,-245.15,0.0002873,2]
[421380885,1777529433000,-178.91756706,0.00028768,2]
[421380894,1777529433000,-296.64,0.00028792,30]
[421380889,1777529433000,-9505.8455704,0.00028772,2]
[421380893,1777529433000,-2166.82925342,0.00028773,2]
[421380895,1777529433000,-245.15,0.00028793,30]
[421380897,1777529433000,-2005.0,0.000288,2]
[421380890,1777529433000,-9869.9468296,0.00028772,2]
[421380891,1777529433000,-2000.0,0.00028772,2]
[421380888,1777529433000,-2126.8734,0.00028772,2]
[421380887,1777529433000,-991.93373017,0.00028772,2]
[421380892,1777529433000,-2500.0,0.00028772,2]
[421380925,1777529434000,-344.218831,0.00028872,7]
[421380924,1777529434000,-344.218831,0.00028872,7]
[421380927,1777529434000,-344.218831,0.00028872,7]
[421380929,1777529434000,-344.218831,0.00028872,7]
[421380932,1777529434000,-436.516546,0.00028872,7]
[421380928,1777529434000,-344.218831,0.00028872,7]
[421380926,1777529434000,-344.218831,0.00028872,7]
[421380935,1777529434000,-436.516546,0.00028872,7]
[421380930,1777529434000,-344.218831,0.00028872,7]
[421380934,1777529434000,-436.516546,0.00028872,7]
[421380933,1777529434000,-436.516546,0.00028872,7]
[421380937,1777529434000,-436.516546,0.00028872,7]
[421380938,1777529434000,-436.516546,0.00028872,7]
[421380939,1777529434000,-2570.76874803,0.00028872,2]
[421380936,1777529434000,-436.516546,0.00028872,7]
[421380931,1777529434000,-436.516546,0.00028872,7]
[421381024,1777529439000,-168.10819128,0.00028873,2]
[421381028,1777529439000,-203.11347946,0.00028879,2]
[421381029,1777529439000,-500.0,0.00028879,2]
[421381027,1777529439000,-500.0,0.00028879,2]
[421381025,1777529439000,-166.66,0.00028878,2]
[421381040,1777529439000,-500.0,0.00028879,2]
[421381039,1777529439000,-500.0,0.00028879,2]
[421381037,1777529439000,-500.0,0.00028879,2]
[421381035,1777529439000,-500.0,0.00028879,2]
[421381023,1777529439000,-500.0,0.00028873,5]
[421381033,1777529439000,-182.06851299,0.00028879,2]
[421381038,1777529439000,-500.0,0.00028879,2]
[421381041,1777529439000,-467.08752281,0.00028879,2]
[421381034,1777529439000,-500.0,0.00028879,2]
[421381031,1777529439000,-500.0,0.00028879,2]
[421381026,1777529439000,-270.10067346,0.00028879,2]
[421381022,1777529439000,-500.0,0.00028873,5]
[421381019,1777529439000,-251.71387294,0.00028872,10]
[421381036,1777529439000,-500.0,0.00028879,2]
[421380990,1777529439000,-151.0,0.00028872,7]
[421380987,1777529439000,-2606.63677047,0.00028772,2]
[421380996,1777529439000,-365.36684326,0.00028872,10]
[421380992,1777529439000,-151.0,0.00028872,7]
[421380994,1777529439000,-934.63315674,0.00028872,10]
[421381003,1777529439000,-151.0,0.00028872,7]
[421381007,1777529439000,-117.71387294,0.00028872,10]
[421381001,1777529439000,-151.0,0.00028872,7]
[421381005,1777529439000,-486.28612706,0.00028872,10]
[421380999,1777529439000,-151.0,0.00028872,7]
[421381011,1777529439000,-731.28612706,0.00028872,10]
[421381009,1777529439000,-151.0,0.00028872,7]
[421381020,1777529439000,-41.74658179,0.00028872,2]
[421381021,1777529439000,-1499958.25341821,0.00028872,2]
[421381030,1777529439000,-500.0,0.00028879,2]
[421381042,1777529439000,-500.0,0.00028879,2]
[421381070,1777529439000,-296.64,0.00029169,30]
[421381043,1777529439000,-500.0,0.00028879,2]
[421381065,1777529439000,-296.64,0.00029012,2]
[421381064,1777529439000,-2000.0,0.00029,2]
[421381059,1777529439000,-155.41812626,0.00028972,3]
[421381062,1777529439000,-296.64,0.00028981,30]
[421381063,1777529439000,-167.65,0.0002899,30]
[421381069,1777529439000,-296.64,0.00029138,7]
[421381077,1777529439000,-2007.21559,0.0002927,2]
[421381068,1777529439000,-296.64,0.00029107,2]
[421381071,1777529439000,-2010.0,0.000292,2]
[421381074,1777529439000,-158.442,0.00029232,22]
[421381073,1777529439000,-1774.24,0.00029232,22]
[421381072,1777529439000,-296.64,0.00029201,2]
[421381075,1777529439000,-296.71,0.00029232,7]
[421381076,1777529439000,-2007.21559,0.0002927,2]
[421381032,1777529439000,-273.09754534,0.00028879,2]
[421381058,1777529439000,-962.94526413,0.00028972,3]
[421381060,1777529439000,-151.0,0.00028972,2]
[421381078,1777529439000,-2007.2156,0.0002927,2]
[421381055,1777529439000,-1533.0,0.00028972,3]
[421381061,1777529439000,-210.79316848,0.00028972,2]
[421381045,1777529439000,-296.64,0.00028886,30]
[421381046,1777529439000,-151.32,0.000289,7]
[421381049,1777529439000,-296.64,0.00028918,2]
[421381048,1777529439000,-16912.69,0.000289,7]
[421381050,1777529439000,-296.64,0.00028949,7]
[421381053,1777529439000,-1533.0,0.00028972,3]
[421381044,1777529439000,-153.09095857,0.00028879,2]
[421381047,1777529439000,-4400.0,0.000289,10]
[421381051,1777529439000,-578.20924308,0.00028971,5]
[421381052,1777529439000,-650.16934532,0.00028971,5]
[421381056,1777529439000,-300.0,0.00028972,3]
[421381066,1777529439000,-296.64,0.00029044,7]
[421381067,1777529439000,-296.64,0.00029075,30]
[421381054,1777529439000,-1533.0,0.00028972,3]
[421381057,1777529439000,-1533.0,0.00028972,3]
[421381128,1777529440000,-501.48415369,0.00029773,5]
[421381127,1777529440000,-500.0,0.00029773,5]
[421381126,1777529440000,-166.51965837,0.00029773,5]
[421381120,1777529440000,-500.0,0.00029573,5]
[421381115,1777529440000,-436.516546,0.00029567,7]
[421381116,1777529440000,-436.516546,0.00029567,7]
[421381114,1777529440000,-436.516546,0.00029567,7]
[421381113,1777529440000,-344.218831,0.00029567,7]
[421381112,1777529440000,-344.218831,0.00029567,7]
[421381117,1777529440000,-436.516546,0.00029567,7]
[421381123,1777529440000,-551.37201899,0.00029773,5]
[421381110,1777529440000,-344.218831,0.00029567,7]
[421381111,1777529440000,-344.218831,0.00029567,7]
[421381130,1777529440000,-151.0,0.00029773,7]
[421381143,1777529440000,-436.516546,0.000298,7]
[421381131,1777529440000,-151.0,0.00029773,7]
[421381119,1777529440000,-151.0,0.00029567,7]
[421381124,1777529440000,-500.0,0.00029773,5]
[421381121,1777529440000,-200.0,0.000296,2]
[421381125,1777529440000,-500.0,0.00029773,5]
[421381133,1777529440000,-151.0,0.00029773,7]
[421381132,1777529440000,-151.0,0.00029773,7]
[421381135,1777529440000,-151.0,0.000298,7]
[421381134,1777529440000,-139708.12637166,0.000298,60]
[421381136,1777529440000,-151.0,0.000298,7]
[421381137,1777529440000,-151.0,0.000298,7]
[421381139,1777529440000,-344.218831,0.000298,7]
[421381107,1777529440000,-2007.21559,0.00029567,2]
[421381129,1777529440000,-314.13139245,0.00029773,5]
[421381109,1777529440000,-2007.2156,0.00029567,2]
[421381088,1777529440000,-1000.0,0.00029567,2]
[421381108,1777529440000,-2007.21559,0.00029567,2]
[421381079,1777529440000,-562.86161996,0.00029421,5]
[421381080,1777529440000,-184.00630433,0.00029469,30]
[421381081,1777529440000,-1341.54199131,0.00029469,30]
[421381093,1777529440000,-1000.0,0.00029567,2]
[421381083,1777529440000,-829.4578312,0.00029469,30]
[421381082,1777529440000,-182.44070093,0.00029469,30]
[421381084,1777529440000,-150.0,0.00029534,2]
[421381090,1777529440000,-1000.0,0.00029567,2]
[421381085,1777529440000,-209.83271283,0.00029538,5]
[421381092,1777529440000,-1000.0,0.00029567,2]
[421381086,1777529440000,-1000.0,0.00029567,2]
[421381087,1777529440000,-1000.0,0.00029567,2]
[421381142,1777529440000,-344.218831,0.000298,7]
[421381118,1777529440000,-151.0,0.00029567,7]
[421381089,1777529440000,-1000.0,0.00029567,2]
[421381094,1777529440000,-1000.0,0.00029567,2]
[421381097,1777529440000,-1000.0,0.00029567,2]
[421381106,1777529440000,-1022.59272786,0.00029567,2]
[421381095,1777529440000,-1000.0,0.00029567,2]
[421381099,1777529440000,-1000.0,0.00029567,2]
[421381100,1777529440000,-1000.0,0.00029567,2]
[421381102,1777529440000,-1000.0,0.00029567,2]
[421381096,1777529440000,-1000.0,0.00029567,2]
[421381105,1777529440000,-1000.0,0.00029567,2]
[421381103,1777529440000,-1000.0,0.00029567,2]
[421381098,1777529440000,-1000.0,0.00029567,2]
[421381101,1777529440000,-1000.0,0.00029567,2]
[421381104,1777529440000,-1000.0,0.00029567,2]
[421381091,1777529440000,-1000.0,0.00029567,2]
[421381140,1777529440000,-344.218831,0.000298,7]
[421381122,1777529440000,-166.66,0.0002972,2]
[421381141,1777529440000,-344.218831,0.000298,7]
[421381182,1777529440000,-772.6544379,0.00031676,60]
[421381177,1777529440000,-214.7221494,0.00031676,60]
[421381179,1777529440000,-175.8357494,0.00031676,60]
[421381171,1777529440000,-10000.0,0.000315,120]
[421381181,1777529440000,-500.0,0.00031676,60]
[421381180,1777529440000,-207.6618653,0.00031676,60]
[421381184,1777529440000,-155.0,0.00031758,2]
[421381191,1777529440000,-155.36,0.000326,7]
[421381190,1777529440000,-150.0,0.00032562,2]
[421381192,1777529440000,-16912.69,0.000327,7]
[421381183,1777529440000,-227.7564714,0.00031676,60]
[421381194,1777529440000,-344.218831,0.000328,7]
[421381195,1777529440000,-344.218831,0.000328,7]
[421381193,1777529440000,-1870.14063861,0.000328,120]
[421381185,1777529440000,-204.00495802,0.00032,120]
[421381187,1777529440000,-157.0,0.00032126,30]
[421381186,1777529440000,-153.0,0.00032126,30]
[421381189,1777529440000,-182.0,0.00032126,30]
[421381188,1777529440000,-156.0,0.00032126,30]
[421381197,1777529440000,-344.218824,0.000328,7]
[421381200,1777529440000,-436.516546,0.000328,7]
[421381202,1777529440000,-151.0,0.000328,7]
[421381198,1777529440000,-436.516546,0.000328,7]
[421381196,1777529440000,-344.218831,0.000328,7]
[421381201,1777529440000,-436.516538,0.000328,7]
[421381199,1777529440000,-436.516546,0.000328,7]
[421381203,1777529440000,-151.0,0.000328,7]
[421381138,1777529440000,-206.513568,0.000298,7]
[421381205,1777529440000,-280.269442,0.00032877,7]
[421381175,1777529440000,-409.612192,0.00031676,60]
[421381178,1777529440000,-776.8967007,0.00031676,60]
[421381204,1777529440000,-280.269442,0.00032877,7]
[421381174,1777529440000,-200.0,0.00031644,40]
[421381176,1777529440000,-237.8793263,0.00031676,60]
[421381144,1777529440000,-436.516546,0.000298,7]
[421381148,1777529440000,-151.0,0.000298,7]
[421381151,1777529440000,-502.25456625,0.00030121,5]